[Event "IV Elllobregat Open Chess Tmnt"]
[Site "Sant Boi de Llobregat, Spain"]
[Date "2023.12.02"]
[Round "3.7"]
[White "Stoyanov, Tsvetan"]
[Black "Sethuraman, S.P."]
[Result "1/2-1/2"]
[TimeControl "90min/40moves + 15min/end + 30sec from move 1"]
[WhiteFideId "2917173"]
[BlackFideId "5021596"]
[WhiteElo "2458"]
[BlackElo "2603"]

1. Nf3 {[%clk 01:30:54]} {[%emt 00:00:05]} Nf6 {[%clk 01:30:34]} {[%emt
00:00:26]} 2. c4 {[%clk 01:30:48]} {[%emt 00:00:37]} e6 {[%clk 01:30:54]}
{[%emt 00:00:09]} 3. e3 {[%clk 01:31:02]} {[%emt 00:00:17]} d5 {[%clk
01:31:07]} {[%emt 00:00:17]} 4. Nc3 {[%clk 01:31:07]} {[%emt 00:00:25]} Bd6
{[%clk 01:31:29]} {[%emt 00:00:07]} 5. b3 {[%clk 01:31:23]} {[%emt 00:00:15]}
O-O {[%clk 01:31:52]} {[%emt 00:00:07]} 6. Bb2 {[%clk 01:31:49]} {[%emt
00:00:04]} Re8 {[%clk 01:32:16]} {[%emt 00:00:06]} 7. d4 {[%clk 01:29:03]}
{[%emt 00:03:15]} b6 {[%clk 01:31:57]} {[%emt 00:00:49]} 8. Be2 {[%clk
01:26:11]} {[%emt 00:03:22]} Bb7 {[%clk 01:31:59]} {[%emt 00:00:29]} 9. O-O
{[%clk 01:26:29]} {[%emt 00:00:12]} Nbd7 {[%clk 01:29:46]} {[%emt 00:02:43]} 10.
a4 {[%clk 01:13:25]} {[%emt 00:13:34]} c5 {[%clk 01:24:28]} {[%emt 00:05:48]}
11. cxd5 {[%clk 01:11:25]} {[%emt 00:02:30]} Nxd5 {[%clk 01:22:09]} {[%emt
00:02:48]} 12. Nxd5 {[%clk 00:59:21]} {[%emt 00:12:34]} Bxd5 {[%clk 01:21:52]}
{[%emt 00:00:47]} 13. Rc1 {[%clk 00:55:32]} {[%emt 00:04:20]} Qb8 {[%clk
01:04:56]} {[%emt 00:17:26]} 14. Bc4 {[%clk 00:42:59]} {[%emt 00:13:03]} Qb7
{[%clk 00:45:20]} {[%emt 00:20:06]} 15. Bxd5 {[%clk 00:32:33]} {[%emt
00:10:56]} exd5 {[%clk 00:44:42]} {[%emt 00:01:08]} 16. Qd3 {[%clk 00:31:51]}
{[%emt 00:01:12]} Rad8 {[%clk 00:38:27]} {[%emt 00:06:44]} 17. Rfd1 {[%clk
00:31:05]} {[%emt 00:01:17]} Be7 {[%clk 00:35:45]} {[%emt 00:03:12]} 18. dxc5
{[%clk 00:24:52]} {[%emt 00:06:43]} Nxc5 {[%clk 00:35:58]} {[%emt 00:00:17]} 19.
Qc3 {[%clk 00:25:08]} {[%emt 00:00:14]} Ne6 {[%clk 00:30:21]} {[%emt 00:06:06]}
1/2-1/2

[Event "IV Elllobregat Open Chess Tmnt"]
[Site "Sant Boi de Llobregat, Spain"]
[Date "2023.12.02"]
[Round "3.8"]
[White "Yuffa, Daniil"]
[Black "Fernandez Guillen, Ernesto J."]
[Result "1-0"]
[TimeControl "90min/40moves + 15min/end + 30sec from move 1"]
[WhiteFideId "24131423"]
[BlackFideId "3512428"]
[WhiteElo "2600"]
[BlackElo "2462"]

1. Nf3 {[%clk 01:30:56]} {[%emt 00:00:03]} Nf6 {[%clk 01:28:21]} {[%emt
00:02:39]} 2. c4 {[%clk 01:31:17]} {[%emt 00:00:10]} b6 {[%clk 01:25:08]}
{[%emt 00:03:43]} 3. d4 {[%clk 01:30:52]} {[%emt 00:00:55]} e6 {[%clk
01:24:34]} {[%emt 00:01:04]} 4. g3 {[%clk 01:30:34]} {[%emt 00:00:49]} Bb7
{[%clk 01:24:57]} {[%emt 00:00:07]} 5. Bg2 {[%clk 01:30:58]} {[%emt 00:00:06]}
Bb4+ {[%clk 01:24:49]} {[%emt 00:00:37]} 6. Bd2 {[%clk 01:31:01]} {[%emt
00:00:27]} Qe7 {[%clk 01:24:53]} {[%emt 00:00:26]} 7. O-O {[%clk 01:31:07]}
{[%emt 00:00:25]} O-O {[%clk 01:21:51]} {[%emt 00:03:32]} 8. Bg5 {[%clk
01:27:44]} {[%emt 00:03:53]} h6 {[%clk 01:10:03]} {[%emt 00:12:18]} 9. Bxf6
{[%clk 01:26:30]} {[%emt 00:01:44]} Qxf6 {[%clk 01:10:14]} {[%emt 00:00:19]} 10.
a3 {[%clk 01:16:52]} {[%emt 00:10:09]} Be7 {[%clk 01:06:06]} {[%emt 00:04:38]}
11. Nc3 {[%clk 01:17:14]} {[%emt 00:00:08]} d6 {[%clk 00:59:10]} {[%emt
00:07:27]} 12. e4 {[%clk 01:11:42]} {[%emt 00:06:02]} Rd8 {[%clk 00:53:43]}
{[%emt 00:05:57]} 13. d5 {[%clk 01:08:25]} {[%emt 00:03:48]} e5 {[%clk
00:45:35]} {[%emt 00:08:38]} 14. Bh3 {[%clk 01:02:54]} {[%emt 00:06:00]} h5
{[%clk 00:38:59]} {[%emt 00:07:05]} 15. b4 {[%clk 00:54:57]} {[%emt 00:08:28]}
Nd7 {[%clk 00:33:09]} {[%emt 00:06:20]} 16. Kg2 {[%clk 00:50:53]} {[%emt
00:04:34]} Nf8 {[%clk 00:26:15]} {[%emt 00:07:23]} 17. Rc1 {[%clk 00:43:06]}
{[%emt 00:08:17]} a6 {[%clk 00:21:23]} {[%emt 00:05:22]} 18. Na4 {[%clk
00:33:40]} {[%emt 00:09:56]} Ng6 {[%clk 00:15:22]} {[%emt 00:06:30]} 19. Qd2
{[%clk 00:28:31]} {[%emt 00:05:39]} b5 {[%clk 00:09:20]} {[%emt 00:06:32]} 20.
Nc3 {[%clk 00:28:17]} {[%emt 00:00:44]} bxc4 {[%clk 00:09:44]} {[%emt
00:00:06]} 21. Qe2 {[%clk 00:28:21]} {[%emt 00:00:26]} c6 {[%clk 00:07:59]}
{[%emt 00:02:15]} 22. Qxc4 {[%clk 00:25:21]} {[%emt 00:03:31]} cxd5 {[%clk
00:08:24]} {[%emt 00:00:05]} 23. Nxd5 {[%clk 00:25:34]} {[%emt 00:00:17]} Bxd5
{[%clk 00:08:42]} {[%emt 00:00:12]} 24. Qxd5 {[%clk 00:25:22]} {[%emt
00:00:41]} Bf8 {[%clk 00:09:06]} {[%emt 00:00:06]} 25. Rc7 {[%clk 00:22:35]}
{[%emt 00:03:18]} Ne7 {[%clk 00:08:05]} {[%emt 00:01:31]} 26. Qc4 {[%clk
00:21:35]} {[%emt 00:01:30]} g5 {[%clk 00:07:27]} {[%emt 00:01:08]} 27. Bd7
{[%clk 00:21:55]} {[%emt 00:00:10]} a5 {[%clk 00:03:06]} {[%emt 00:04:52]} 28.
h4 {[%clk 00:17:29]} {[%emt 00:04:55]} g4 {[%clk 00:02:42]} {[%emt 00:00:54]}
29. Ng5 {[%clk 00:17:35]} {[%emt 00:00:25]} axb4 {[%clk 00:02:06]} {[%emt
00:01:06]} 30. axb4 {[%clk 00:15:36]} {[%emt 00:02:28]} d5 {[%clk 00:01:09]}
{[%emt 00:01:27]} 31. exd5 {[%clk 00:15:28]} {[%emt 00:00:38]} Qd6 {[%clk
00:01:09]} {[%emt 00:00:30]} 32. Qc2 {[%clk 00:06:17]} {[%emt 00:09:41]} Qxd5+
{[%clk 00:00:40]} {[%emt 00:00:59]} 33. Kh2 {[%clk 00:06:36]} {[%emt 00:00:10]}
e4 {[%clk 00:00:41]} {[%emt 00:00:30]} 34. Nxe4 {[%clk 00:05:53]} {[%emt
00:01:14]} Bg7 {[%clk 00:00:45]} {[%emt 00:00:26]} 35. Rd1 {[%clk 00:05:05]}
{[%emt 00:01:18]} Ra2 {[%clk 00:00:36]} {[%emt 00:00:38]} 36. Qb1 {[%clk
00:04:04]} {[%emt 00:01:30]} Qa8 {[%clk 00:00:39]} {[%emt 00:00:27]} 37. Qb3
{[%clk 00:01:55]} {[%emt 00:02:40]} Re2 {[%clk 00:00:39]} {[%emt 00:00:30]} 38.
Bc6 {[%clk 00:01:41]} {[%emt 00:00:44]} Rxd1 {[%clk 00:00:40]} {[%emt
00:00:30]} 39. Bxa8 {[%clk 00:01:49]} {[%emt 00:00:22]} Ree1 {[%clk 00:00:52]}
{[%emt 00:00:18]} 40. Ng5 {[%clk 00:17:02]} {[%emt 00:00:17]} 1-0

[Event "IV Elllobregat Open Chess Tmnt"]
[Site "Sant Boi de Llobregat, Spain"]
[Date "2023.12.02"]
[Round "3.9"]
[White "Kozak, Adam"]
[Black "Saydaliev, Saidakbar"]
[Result "1-0"]
[TimeControl "90min/40moves + 15min/end + 30sec from move 1"]
[WhiteFideId "753246"]
[BlackFideId "14203693"]
[WhiteElo "2578"]
[BlackElo "2426"]

1. d4 {[%clk 01:28:27]} {[%emt 00:02:32]} Nf6 {[%clk 01:30:39]} {[%emt
00:00:22]} 2. c4 {[%clk 01:28:48]} {[%emt 00:00:09]} g6 {[%clk 01:30:52]}
{[%emt 00:00:16]} 3. Nc3 {[%clk 01:27:02]} {[%emt 00:02:17]} Bg7 {[%clk
01:31:04]} {[%emt 00:00:18]} 4. e4 {[%clk 01:25:07]} {[%emt 00:02:26]} d6
{[%clk 01:31:08]} {[%emt 00:00:26]} 5. Nf3 {[%clk 01:25:13]} {[%emt 00:00:23]}
O-O {[%clk 01:31:17]} {[%emt 00:00:21]} 6. Be2 {[%clk 01:25:37]} {[%emt
00:00:06]} e5 {[%clk 01:31:32]} {[%emt 00:00:15]} 7. O-O {[%clk 01:25:55]}
{[%emt 00:00:12]} h6 {[%clk 01:31:54]} {[%emt 00:00:08]} 8. Re1 {[%clk
01:26:06]} {[%emt 00:00:19]} Nbd7 {[%clk 01:32:02]} {[%emt 00:00:22]} 9. Bf1
{[%clk 01:24:56]} {[%emt 00:01:41]} Re8 {[%clk 01:32:19]} {[%emt 00:00:13]} 10.
Rb1 {[%clk 01:22:56]} {[%emt 00:02:30]} a5 {[%clk 01:27:14]} {[%emt 00:05:35]}
11. b3 {[%clk 01:07:18]} {[%emt 00:16:08]} exd4 {[%clk 01:23:32]} {[%emt
00:04:12]} 12. Nxd4 {[%clk 01:06:11]} {[%emt 00:01:36]} Nc5 {[%clk 01:23:18]}
{[%emt 00:00:44]} 13. f3 {[%clk 01:05:39]} {[%emt 00:01:03]} c6 {[%clk
01:23:23]} {[%emt 00:00:25]} 14. Be3 {[%clk 01:04:12]} {[%emt 00:01:58]} Be6
{[%clk 01:10:34]} {[%emt 00:13:19]} 15. Qd2 {[%clk 01:01:16]} {[%emt 00:03:26]}
Kh7 {[%clk 01:08:49]} {[%emt 00:02:15]} 16. Rbd1 {[%clk 01:01:17]} {[%emt
00:00:29]} Qc7 {[%clk 01:08:56]} {[%emt 00:00:23]} 17. Nxe6 {[%clk 00:53:32]}
{[%emt 00:08:14]} Rxe6 {[%clk 01:06:27]} {[%emt 00:02:59]} 18. Ne2 {[%clk
00:48:39]} {[%emt 00:05:24]} Bf8 {[%clk 01:01:47]} {[%emt 00:05:11]} 19. Bd4
{[%clk 00:28:07]} {[%emt 00:21:02]} Nfd7 {[%clk 00:57:18]} {[%emt 00:04:59]} 20.
Ng3 {[%clk 00:21:02]} {[%emt 00:07:35]} h5 {[%clk 00:44:12]} {[%emt 00:13:36]}
21. Ne2 {[%clk 00:16:22]} {[%emt 00:05:10]} Ree8 {[%clk 00:36:28]} {[%emt
00:08:14]} 22. Nc3 {[%clk 00:14:19]} {[%emt 00:02:33]} Ne6 {[%clk 00:30:44]}
{[%emt 00:06:14]} 23. Bf2 {[%clk 00:13:47]} {[%emt 00:01:02]} Ndc5 {[%clk
00:30:26]} {[%emt 00:00:48]} 24. f4 {[%clk 00:11:27]} {[%emt 00:02:50]} Rad8
{[%clk 00:24:11]} {[%emt 00:06:44]} 25. g3 {[%clk 00:08:40]} {[%emt 00:03:17]}
Bg7 {[%clk 00:24:18]} {[%emt 00:00:22]} 26. Bh3 {[%clk 00:05:36]} {[%emt
00:03:34]} Nf8 {[%clk 00:19:11]} {[%emt 00:05:37]} 27. Bg2 {[%clk 00:05:45]}
{[%emt 00:00:21]} Qb6 {[%clk 00:16:33]} {[%emt 00:03:08]} 28. Na4 {[%clk
00:03:52]} {[%emt 00:02:23]} Qc7 {[%clk 00:16:58]} {[%emt 00:00:05]} 29. Nc3
{[%clk 00:03:45]} {[%emt 00:00:38]} Qb6 {[%clk 00:17:24]} {[%emt 00:00:04]} 30.
Na4 {[%clk 00:01:12]} {[%emt 00:03:03]} Qc7 {[%clk 00:17:49]} {[%emt 00:00:04]}
31. Nb2 {[%clk 00:01:29]} {[%emt 00:00:13]} Nce6 {[%clk 00:12:49]} {[%emt
00:05:31]} 32. Nd3 {[%clk 00:01:17]} {[%emt 00:00:42]} Nd4 {[%clk 00:11:24]}
{[%emt 00:01:54]} 33. Nb2 {[%clk 00:00:31]} {[%emt 00:01:17]} c5 {[%clk
00:08:24]} {[%emt 00:03:30]} 34. Na4 {[%clk 00:01:00]} {[%emt 00:00:01]} Nfe6
{[%clk 00:08:30]} {[%emt 00:00:23]} 35. Nc3 {[%clk 00:01:10]} {[%emt 00:00:20]}
Ra8 {[%clk 00:07:11]} {[%emt 00:01:49]} 36. Nd5 {[%clk 00:00:48]} {[%emt
00:00:52]} Qd8 {[%clk 00:07:40]} 37. Qd3 {[%clk 00:00:32]} {[%emt 00:00:46]}
Nc7 {[%clk 00:07:31]} {[%emt 00:00:39]} 38. Nc3 {[%clk 00:00:34]} {[%emt
00:00:28]} Qd7 {[%clk 00:07:41]} {[%emt 00:00:19]} 39. Kh1 {[%clk 00:00:34]}
{[%emt 00:00:31]} Rad8 {[%clk 00:03:59]} {[%emt 00:04:12]} 40. Ne2 {[%clk
00:15:33]} {[%emt 00:00:32]} Nxe2 {[%clk 00:18:31]} {[%emt 00:00:58]} 41. Rxe2
{[%clk 00:14:50]} {[%emt 00:01:12]} Qc8 {[%clk 00:17:39]} {[%emt 00:01:22]} 42.
f5 {[%clk 00:13:03]} {[%emt 00:02:18]} Na6 {[%clk 00:14:39]} {[%emt 00:03:30]}
43. Qf3 {[%clk 00:08:19]} {[%emt 00:05:14]} Be5 {[%clk 00:03:16]} {[%emt
00:11:53]} 44. fxg6+ {[%clk 00:07:10]} {[%emt 00:01:39]} fxg6 {[%clk 00:03:01]}
{[%emt 00:00:45]} 45. Qf7+ {[%clk 00:05:48]} {[%emt 00:01:53]} Bg7 {[%clk
00:03:24]} {[%emt 00:00:06]} 46. e5 {[%clk 00:06:11]} {[%emt 00:00:08]} Rd7
{[%clk 00:02:14]} {[%emt 00:01:40]} 47. Qd5 {[%clk 00:01:52]} {[%emt 00:04:49]}
Nb4 {[%clk 00:01:45]} {[%emt 00:00:59]} 48. Qd2 {[%clk 00:02:21]} {[%emt
00:00:01]} Rxe5 {[%clk 00:00:50]} {[%emt 00:01:25]} 49. Rxe5 {[%clk 00:02:37]}
{[%emt 00:00:13]} Bxe5 {[%clk 00:01:19]} {[%emt 00:00:02]} 50. a3 {[%clk
00:03:01]} {[%emt 00:00:07]} Na6 {[%clk 00:01:20]} {[%emt 00:00:28]} 51. Qxa5
{[%clk 00:03:15]} {[%emt 00:00:15]} Rf7 {[%clk 00:01:20]} {[%emt 00:00:30]} 52.
Qd2 {[%clk 00:01:52]} {[%emt 00:01:54]} Qg4 {[%clk 00:01:18]} {[%emt 00:00:31]}
53. Re1 {[%clk 00:00:48]} {[%emt 00:01:34]} Nb8 {[%clk 00:01:11]} {[%emt
00:00:38]} 54. Bd5 {[%clk 00:00:59]} {[%emt 00:00:19]} Re7 {[%clk 00:00:59]}
{[%emt 00:00:42]} 55. Kg2 {[%clk 00:01:14]} {[%emt 00:00:15]} Nc6 {[%clk
00:01:07]} {[%emt 00:00:22]} 56. h3 {[%clk 00:01:14]} {[%emt 00:00:30]} Qd7
{[%clk 00:01:14]} {[%emt 00:00:22]} 57. Qd3 {[%clk 00:00:44]} {[%emt 00:01:00]}
Kg7 {[%clk 00:00:46]} {[%emt 00:00:59]} 58. Qf3 {[%clk 00:00:33]} {[%emt
00:00:41]} Re8 {[%clk 00:00:42]} {[%emt 00:00:33]} 59. Be3 {[%clk 00:00:33]}
{[%emt 00:00:31]} Rf8 {[%clk 00:00:48]} {[%emt 00:00:24]} 60. Bh6+ {[%clk
00:00:57]} {[%emt 00:00:06]} Kxh6 {[%clk 00:00:46]} {[%emt 00:00:32]} 61. Qxf8+
{[%clk 00:01:25]} {[%emt 00:00:02]} Bg7 {[%clk 00:00:55]} {[%emt 00:00:22]} 62.
Qf7 {[%clk 00:00:55]} {[%emt 00:01:00]} Qc8 {[%clk 00:00:49]} {[%emt 00:00:36]}
63. Re8 {[%clk 00:01:02]} {[%emt 00:00:22]} 1-0

[Event "IV Elllobregat Open Chess Tmnt"]
[Site "Sant Boi de Llobregat, Spain"]
[Date "2023.12.02"]
[Round "3.10"]
[White "Koelle, Tobias"]
[Black "Aditya, Mittal"]
[Result "1/2-1/2"]
[TimeControl "90min/40moves + 15min/end + 30sec from move 1"]
[WhiteFideId "16207378"]
[BlackFideId "35042025"]
[WhiteElo "2453"]
[BlackElo "2577"]

1. d4 {[%clk 01:30:50]} {[%emt 00:00:09]} Nf6 {[%clk 01:30:59]} {[%emt
00:00:02]} 2. c4 {[%clk 01:31:13]} {[%emt 00:00:07]} e6 {[%clk 01:31:27]}
{[%emt 00:00:02]} 3. Nf3 {[%clk 01:31:36]} {[%emt 00:00:06]} b6 {[%clk
01:31:56]} {[%emt 00:00:03]} 4. g3 {[%clk 01:31:58]} {[%emt 00:00:06]} Ba6
{[%clk 01:32:25]} {[%emt 00:00:02]} 5. Qc2 {[%clk 01:31:50]} {[%emt 00:00:38]}
c5 {[%clk 01:32:53]} {[%emt 00:00:02]} 6. d5 {[%clk 01:31:52]} {[%emt
00:00:28]} exd5 {[%clk 01:33:22]} {[%emt 00:00:02]} 7. cxd5 {[%clk 01:32:08]}
{[%emt 00:00:13]} Bb7 {[%clk 01:33:50]} {[%emt 00:00:02]} 8. Bg2 {[%clk
01:31:52]} {[%emt 00:00:46]} Nxd5 {[%clk 01:34:19]} {[%emt 00:00:02]} 9. O-O
{[%clk 01:32:09]} {[%emt 00:00:13]} Be7 {[%clk 01:34:47]} {[%emt 00:00:02]} 10.
Rd1 {[%clk 01:32:02]} {[%emt 00:00:37]} Nc6 {[%clk 01:35:16]} {[%emt 00:00:02]}
11. Qa4 {[%clk 01:31:39]} {[%emt 00:00:53]} Nf6 {[%clk 01:35:40]} {[%emt
00:00:06]} 12. Nh4 {[%clk 01:31:09]} {[%emt 00:00:57]} O-O {[%clk 01:36:07]}
{[%emt 00:00:05]} 13. Nf5 {[%clk 01:30:24]} {[%emt 00:01:15]} d5 {[%clk
01:36:35]} {[%emt 00:00:02]} 14. Nc3 {[%clk 01:30:43]} {[%emt 00:00:10]} Nb4
{[%clk 01:37:04]} {[%emt 00:00:02]} 15. a3 {[%clk 01:24:44]} {[%emt 00:06:29]}
a5 {[%clk 01:37:32]} {[%emt 00:00:02]} 16. Nxd5 {[%clk 01:22:38]} {[%emt
00:02:36]} Nbxd5 {[%clk 01:37:36]} {[%emt 00:00:27]} 17. e4 {[%clk 01:21:18]}
{[%emt 00:01:50]} Qc8 {[%clk 01:38:04]} {[%emt 00:00:02]} 18. Qc2 {[%clk
01:07:05]} {[%emt 00:14:42]} Re8 {[%clk 01:38:32]} {[%emt 00:00:02]} 19. exd5
{[%clk 01:07:19]} {[%emt 00:00:16]} Bf8 {[%clk 01:39:00]} {[%emt 00:00:02]} 20.
Bg5 {[%clk 00:55:36]} {[%emt 00:12:13]} Nd7 {[%clk 01:34:21]} {[%emt 00:05:10]}
21. Re1 {[%clk 00:49:17]} {[%emt 00:06:49]} Ne5 {[%clk 01:27:20]} {[%emt
00:07:32]} 22. Bf4 {[%clk 00:41:42]} {[%emt 00:08:04]} Ng6 {[%clk 01:22:37]}
{[%emt 00:05:14]} 23. Bd6 {[%clk 00:38:47]} {[%emt 00:03:23]} Qd7 {[%clk
01:18:41]} {[%emt 00:04:27]} 24. Bxf8 {[%clk 00:36:36]} {[%emt 00:02:41]} Kxf8
{[%clk 01:13:45]} {[%emt 00:05:26]} 25. Ne3 {[%clk 00:35:44]} {[%emt 00:01:21]}
Ba6 {[%clk 01:08:29]} {[%emt 00:05:46]} 26. b4 {[%clk 00:29:14]} {[%emt
00:07:00]} Rac8 {[%clk 00:53:26]} {[%emt 00:15:34]} 27. bxa5 {[%clk 00:28:57]}
{[%emt 00:00:46]} bxa5 {[%clk 00:51:42]} {[%emt 00:02:15]} 28. Rab1 {[%clk
00:27:57]} {[%emt 00:01:30]} Bb5 {[%clk 00:41:57]} {[%emt 00:10:15]} 29. Qc3
{[%clk 00:16:23]} {[%emt 00:12:04]} a4 {[%clk 00:35:06]} {[%emt 00:07:22]} 30.
Red1 {[%clk 00:09:42]} {[%emt 00:07:11]} Ne5 {[%clk 00:27:42]} {[%emt
00:07:54]} 31. Rd2 {[%clk 00:08:07]} {[%emt 00:02:04]} Kg8 {[%clk 00:24:06]}
{[%emt 00:04:07]} 32. d6 {[%clk 00:06:12]} {[%emt 00:02:25]} Bc6 {[%clk
00:22:45]} {[%emt 00:01:52]} 33. Nc4 {[%clk 00:05:58]} {[%emt 00:00:43]} Qf5
{[%clk 00:18:13]} {[%emt 00:05:02]} 34. Rbd1 {[%clk 00:04:30]} {[%emt
00:01:58]} Bxg2 {[%clk 00:16:09]} {[%emt 00:02:35]} 35. Nxe5 {[%clk 00:04:48]}
{[%emt 00:00:12]} Rxe5 {[%clk 00:14:20]} {[%emt 00:02:20]} 36. Kxg2 {[%clk
00:04:29]} {[%emt 00:00:48]} Rd8 {[%clk 00:12:41]} {[%emt 00:02:09]} 37. d7
{[%clk 00:04:06]} {[%emt 00:00:53]} Kf8 {[%clk 00:09:19]} {[%emt 00:03:52]} 38.
Qa5 {[%clk 00:04:02]} {[%emt 00:00:35]} Ke7 {[%clk 00:09:07]} {[%emt 00:00:42]}
39. Qc7 {[%clk 00:04:04]} {[%emt 00:00:27]} f6 {[%clk 00:08:50]} {[%emt
00:00:48]} 40. Qd6+ {[%clk 00:16:56]} {[%emt 00:02:36]} Kf7 {[%clk 00:24:19]}
{[%emt 00:00:03]} 41. Qc7 {[%clk 00:15:07]} {[%emt 00:02:19]} Ke7 {[%clk
00:24:26]} {[%emt 00:00:23]} 42. Qd6+ {[%clk 00:10:31]} {[%emt 00:05:05]} Kf7
{[%clk 00:24:54]} {[%emt 00:00:02]} 43. Qb6 {[%clk 00:07:30]} {[%emt 00:03:29]}
Ke7 {[%clk 00:24:56]} {[%emt 00:00:30]} 44. Qd6+ {[%clk 00:06:32]} {[%emt
00:01:28]} 1/2-1/2

[Event "IV Elllobregat Open Chess Tmnt"]
[Site "Sant Boi de Llobregat, Spain"]
[Date "2023.12.02"]
[Round "3.11"]
[White "Rozen, Eytan"]
[Black "Asadli, Vugar"]
[Result "1/2-1/2"]
[TimeControl "90min/40moves + 15min/end + 30sec from move 1"]
[WhiteFideId "2816750"]
[BlackFideId "13405764"]
[WhiteElo "2451"]
[BlackElo "2562"]

1. e4 {[%clk 01:09:17]} {[%emt 00:21:42]} e5 {[%clk 01:30:54]} {[%emt
00:00:06]} 2. Nf3 {[%clk 01:09:41]} {[%emt 00:00:06]} Nc6 {[%clk 01:31:19]}
{[%emt 00:00:05]} 3. Bb5 {[%clk 01:09:58]} {[%emt 00:00:14]} Nge7 {[%clk
01:31:31]} {[%emt 00:00:17]} 4. Nc3 {[%clk 01:08:35]} {[%emt 00:01:54]} Ng6
{[%clk 01:31:27]} {[%emt 00:00:33]} 5. d3 {[%clk 01:06:47]} {[%emt 00:02:19]}
a6 {[%clk 01:26:26]} {[%emt 00:05:32]} 6. Bc4 {[%clk 01:06:09]} {[%emt
00:01:08]} Na5 {[%clk 01:23:59]} {[%emt 00:02:56]} 7. O-O {[%clk 01:05:09]}
{[%emt 00:01:30]} d6 {[%clk 01:19:41]} {[%emt 00:04:48]} 8. a4 {[%clk
01:04:40]} {[%emt 00:00:59]} Nxc4 {[%clk 01:16:50]} {[%emt 00:03:21]} 9. dxc4
{[%clk 01:05:09]} {[%emt 00:00:02]} Be7 {[%clk 01:16:30]} {[%emt 00:00:50]} 10.
Nd5 {[%clk 01:04:53]} {[%emt 00:00:46]} O-O {[%clk 01:16:11]} {[%emt 00:00:48]}
11. Ne3 {[%clk 00:59:14]} {[%emt 00:06:10]} Qe8 {[%clk 01:10:30]} {[%emt
00:06:11]} 12. b3 {[%clk 00:53:05]} {[%emt 00:06:40]} Qc6 {[%clk 01:08:23]}
{[%emt 00:02:37]} 13. Re1 {[%clk 00:49:58]} {[%emt 00:03:37]} Bd8 {[%clk
00:58:03]} {[%emt 00:10:50]} 14. Nf5 {[%clk 00:46:27]} {[%emt 00:04:01]} Bf6
{[%clk 00:53:04]} {[%emt 00:05:29]} 15. Ng3 {[%clk 00:35:02]} {[%emt 00:11:55]}
Nf4 {[%clk 00:51:38]} {[%emt 00:01:56]} 16. Nd4 {[%clk 00:30:01]} {[%emt
00:05:31]} Qb6 {[%clk 00:48:08]} {[%emt 00:04:01]} 17. Nde2 {[%clk 00:26:47]}
{[%emt 00:03:43]} Qc6 {[%clk 00:42:41]} {[%emt 00:05:57]} 18. Nd4 {[%clk
00:26:30]} {[%emt 00:00:48]} Qe8 {[%clk 00:36:34]} {[%emt 00:06:36]} 19. Nde2
{[%clk 00:25:45]} {[%emt 00:01:15]} Nxe2+ {[%clk 00:36:00]} {[%emt 00:01:05]}
20. Qxe2 {[%clk 00:25:45]} {[%emt 00:00:30]} g6 {[%clk 00:35:43]} {[%emt
00:00:47]} 21. Bh6 {[%clk 00:24:14]} {[%emt 00:02:01]} Bg7 {[%clk 00:36:09]}
{[%emt 00:00:04]} 22. Bxg7 {[%clk 00:24:11]} {[%emt 00:00:34]} Kxg7 {[%clk
00:36:37]} {[%emt 00:00:01]} 23. Rad1 {[%clk 00:22:04]} {[%emt 00:02:37]} a5
{[%clk 00:36:10]} {[%emt 00:00:58]} 24. Qd2 {[%clk 00:18:56]} {[%emt 00:03:37]}
b6 {[%clk 00:34:03]} {[%emt 00:02:37]} 25. Nh5+ {[%clk 00:15:39]} {[%emt
00:03:47]} gxh5 {[%clk 00:34:26]} {[%emt 00:00:07]} 1/2-1/2